[Event "December 5 Early 2023"]
[Site "https://www.chess.com"]
[Date "2023.12.05"]
[Round "8"]
[White "Buscar, Michael"]
[Black "pauliukevicius"]
[Result "1-0"]
[Board "162"]
[TimeControl "180+1"]
[WhiteFideId "2603616"]
[WhiteElo "2342"]
[BlackElo "2153"]
[WhiteTeam "CAN"]
[WhiteClock "0:00:37"]
[BlackClock "0:00:10"]

1. Nf3 {[%clk 0:03:00]}  Nf6 {[%clk 0:02:59]} 2. g3 {[%clk 0:02:58]}  d5 {[%clk 0:02:57]} 3. Bg2 {[%clk 0:02:58]}  c5 {[%clk 0:02:56]} 4. O-O {[%clk 0:02:56]}  Nc6 {[%clk 0:02:55]} 5. d4 {[%clk 0:02:56]}  cxd4 {[%clk 0:02:51]} 6. Nxd4 {[%clk 0:02:56]}  e5 {[%clk 0:02:51]} 7. Nxc6 {[%clk 0:02:55]}  bxc6 {[%clk 0:02:52]} 8. c4 {[%clk 0:02:56]}  Be6 {[%clk 0:02:50]} 9. cxd5 {[%clk 0:02:50]}  cxd5 {[%clk 0:02:50]} 10. Qa4+ {[%clk 0:02:49]}  Qd7 {[%clk 0:02:49]} 11. Qxd7+ {[%clk 0:02:46]}  Kxd7 {[%clk 0:02:41]} 12. Nc3 {[%clk 0:02:43]}  Ke8 {[%clk 0:02:04]} 13. Rd1 {[%clk 0:02:41]}  Rd8 {[%clk 0:02:04]} 14. Nb5 {[%clk 0:02:38]}  Rd7 {[%clk 0:01:45]} 15. Be3 {[%clk 0:02:27]}  a6 {[%clk 0:01:33]} 16. Na3 {[%clk 0:01:26]}  Bd6 {[%clk 0:01:15]} 17. Rac1 {[%clk 0:01:22]}  Ke7 {[%clk 0:01:14]} 18. Rc6 {[%clk 0:01:18]}  Rb8 {[%clk 0:01:08]} 19. Bc1 {[%clk 0:00:54]}  Bxa3 {[%clk 0:00:27]} 20. bxa3 {[%clk 0:00:53]}  a5 {[%clk 0:00:18]} 21. Bd2 {[%clk 0:00:51]}  Rb2 {[%clk 0:00:13]} 22. Bxa5 {[%clk 0:00:50]}  Rxa2 {[%clk 0:00:09]} 23. Bb4+ {[%clk 0:00:50]}  Ke8 {[%clk 0:00:09]} 24. e3 {[%clk 0:00:45]}  e4 {[%clk 0:00:07]} 25. Bf1 {[%clk 0:00:44]}  Bg4 {[%clk 0:00:06]} 26. Rdc1 {[%clk 0:00:42]}  Rd8 {[%clk 0:00:06]} 27. Bb5 {[%clk 0:00:41]}  Bd7 {[%clk 0:00:06]} 28. Rb6 {[%clk 0:00:36]}  Bxb5 {[%clk 0:00:06]} 29. Rxb5 {[%clk 0:00:36]}  Ng4 {[%clk 0:00:06]} 30. Rb7 {[%clk 0:00:34]}  f6 {[%clk 0:00:03]} 31. Re7+ {[%clk 0:00:33]}  Kf8 {[%clk 0:00:03]} 32. Rxe4+ {[%clk 0:00:34]}  Kg8 {[%clk 0:00:03]} 33. Rxg4 {[%clk 0:00:34]}  d4 {[%clk 0:00:03]} 34. Rxd4 {[%clk 0:00:34]}  Rc8 {[%clk 0:00:03]} 35. Rxc8+ {[%clk 0:00:34]}  Kf7 {[%clk 0:00:04]} 36. Rd7+ {[%clk 0:00:34]}  Kg6 {[%clk 0:00:05]} 37. Rcc7 {[%clk 0:00:34]}  Kg5 {[%clk 0:00:05]} 38. Kg2 {[%clk 0:00:35]}  Kg4 {[%clk 0:00:05]} 39. Rxg7+ {[%clk 0:00:35]}  Kf5 {[%clk 0:00:05]} 40. Rxh7 {[%clk 0:00:36]}  Ke4 {[%clk 0:00:06]} 41. Rh4+ {[%clk 0:00:36]}  Ke5 {[%clk 0:00:06]} 42. Rd4 {[%clk 0:00:36]}  f5 {[%clk 0:00:07]} 43. Rc5+ {[%clk 0:00:37]}  Kf6 {[%clk 0:00:08]} 44. Rdd5 {[%clk 0:00:37]}  Kg5 {[%clk 0:00:09]} 45. Rxf5+ {[%clk 0:00:37]}  Kg4 {[%clk 0:00:10]} 46. h3# {[%clk 0:00:37]} 1-0

[Event "December 5 Early 2023"]
[Site "https://www.chess.com"]
[Date "2023.12.05"]
[Round "8"]
[White "Tarasova, Viktoriya"]
[Black "Vanek, Tomas"]
[Result "1/2-1/2"]
[Board "163"]
[TimeControl "180+1"]
[WhiteFideId "4175840"]
[BlackFideId "313459"]
[WhiteElo "2331"]
[BlackElo "2145"]
[WhiteTeam "RUS"]
[BlackTeam "CZE"]
[WhiteClock "0:00:30"]
[BlackClock "0:00:16"]

1. d4 {[%clk 0:03:00]}  f5 {[%clk 0:02:59]} 2. c4 {[%clk 0:02:59]}  Nf6 {[%clk 0:02:59]} 3. g3 {[%clk 0:02:59]}  g6 {[%clk 0:02:56]} 4. Bg2 {[%clk 0:03:00]}  Bg7 {[%clk 0:02:56]} 5. Nf3 {[%clk 0:03:01]}  O-O {[%clk 0:02:56]} 6. O-O {[%clk 0:03:01]}  d6 {[%clk 0:02:56]} 7. Nc3 {[%clk 0:03:02]}  c6 {[%clk 0:02:56]} 8. Re1 {[%clk 0:02:59]}  Ne4 {[%clk 0:02:53]} 9. Qc2 {[%clk 0:02:58]}  d5 {[%clk 0:02:53]} 10. Bf4 {[%clk 0:02:57]}  Na6 {[%clk 0:02:34]} 11. a3 {[%clk 0:02:55]}  h6 {[%clk 0:02:23]} 12. Be5 {[%clk 0:02:54]}  Be6 {[%clk 0:02:07]} 13. Bxg7 {[%clk 0:02:49]}  Kxg7 {[%clk 0:02:07]} 14. cxd5 {[%clk 0:02:49]}  Bxd5 {[%clk 0:02:05]} 15. b4 {[%clk 0:02:39]}  Nc7 {[%clk 0:02:04]} 16. Ne5 {[%clk 0:02:36]}  Nxc3 {[%clk 0:01:58]} 17. Qxc3 {[%clk 0:02:36]}  Nb5 {[%clk 0:01:52]} 18. Qc5 {[%clk 0:02:28]}  b6 {[%clk 0:01:48]} 19. Qc1 {[%clk 0:02:24]}  Nxd4 {[%clk 0:01:43]} 20. Qb2 {[%clk 0:02:06]}  Bxg2 {[%clk 0:01:40]} 21. Kxg2 {[%clk 0:02:06]}  Qd5+ {[%clk 0:01:34]} 22. Nf3 {[%clk 0:02:05]}  e5 {[%clk 0:01:33]} 23. Red1 {[%clk 0:02:00]}  Rad8 {[%clk 0:01:32]} 24. Rac1 {[%clk 0:01:48]}  Rf6 {[%clk 0:01:30]} 25. Kf1 {[%clk 0:01:37]}  Qe4 {[%clk 0:01:20]} 26. Rd2 {[%clk 0:01:28]}  Rfd6 {[%clk 0:00:46]} 27. Rcd1 {[%clk 0:01:18]}  Nxf3 {[%clk 0:00:26]} 28. exf3 {[%clk 0:01:06]}  Qc4+ {[%clk 0:00:19]} 29. Kg2 {[%clk 0:01:04]}  Rxd2 {[%clk 0:00:19]} 30. Rxd2 {[%clk 0:01:04]}  Rxd2 {[%clk 0:00:19]} 31. Qxd2 {[%clk 0:00:59]}  Qd4 {[%clk 0:00:19]} 32. Qe2 {[%clk 0:00:58]}  b5 {[%clk 0:00:18]} 33. Qc2 {[%clk 0:00:56]}  Qc4 {[%clk 0:00:18]} 34. Qd2 {[%clk 0:00:56]}  Qd4 {[%clk 0:00:17]} 35. Qc2 {[%clk 0:00:55]}  Qc4 {[%clk 0:00:17]} 36. Qd1 {[%clk 0:00:55]}  Qd4 {[%clk 0:00:16]} 37. Qc1 {[%clk 0:00:44]}  Qc4 {[%clk 0:00:16]} 38. Qe3 {[%clk 0:00:31]}  Qd4 {[%clk 0:00:16]} 39. Qb3 {[%clk 0:00:31]}  Qc4 {[%clk 0:00:16]} 40. Qe3 {[%clk 0:00:30]}  Qd4 {[%clk 0:00:16]} 41. Qb3 {[%clk 0:00:30]}  Qc4 {[%clk 0:00:16]} 42. Qe3 {[%clk 0:00:30]} 1/2-1/2

[Event "December 5 Early 2023"]
[Site "https://www.chess.com"]
[Date "2023.12.05"]
[Round "8"]
[White "De Arruda, Leandro Formes"]
[Black "Ghosh, Chanchal Kumer"]
[Result "1-0"]
[Board "164"]
[TimeControl "180+1"]
[WhiteFideId "22722009"]
[BlackFideId "10201858"]
[WhiteElo "2325"]
[BlackElo "2074"]
[WhiteTeam "BRA"]
[BlackTeam "BAN"]
[WhiteClock "0:00:35"]
[BlackClock "0:00:00"]

1. d4 {[%clk 0:03:00]}  d5 {[%clk 0:02:59]} 2. Nf3 {[%clk 0:03:01]}  e6 {[%clk 0:02:59]} 3. e3 {[%clk 0:03:01]}  Nf6 {[%clk 0:03:00]} 4. Bd3 {[%clk 0:03:02]}  c5 {[%clk 0:03:00]} 5. c3 {[%clk 0:03:02]}  Nc6 {[%clk 0:03:01]} 6. Nbd2 {[%clk 0:03:02]}  Bd6 {[%clk 0:03:01]} 7. O-O {[%clk 0:03:03]}  O-O {[%clk 0:03:02]} 8. Re1 {[%clk 0:03:03]}  e5 {[%clk 0:03:02]} 9. e4 {[%clk 0:03:04]}  cxd4 {[%clk 0:02:58]} 10. cxd4 {[%clk 0:03:04]}  dxe4 {[%clk 0:02:36]} 11. Nxe4 {[%clk 0:03:04]}  Nxe4 {[%clk 0:02:33]} 12. Bxe4 {[%clk 0:03:02]}  Nxd4 {[%clk 0:02:23]} 13. Nxd4 {[%clk 0:02:51]}  exd4 {[%clk 0:02:23]} 14. Qh5 {[%clk 0:02:47]}  g6 {[%clk 0:02:08]} 15. Qh6 {[%clk 0:02:46]}  Qf6 {[%clk 0:01:54]} 16. Bg5 {[%clk 0:02:46]}  Qg7 {[%clk 0:01:41]} 17. Qh4 {[%clk 0:02:46]}  h5 {[%clk 0:01:14]} 18. Bf6 {[%clk 0:02:33]}  Qh6 {[%clk 0:01:12]} 19. Bg5 {[%clk 0:02:33]}  Qg7 {[%clk 0:01:12]} 20. Rad1 {[%clk 0:02:32]}  Bc5 {[%clk 0:01:05]} 21. Bd5 {[%clk 0:02:26]}  Bg4 {[%clk 0:00:59]} 22. f3 {[%clk 0:02:23]}  Bf5 {[%clk 0:00:57]} 23. Bf6 {[%clk 0:02:14]}  Qh6 {[%clk 0:00:55]} 24. Bxd4 {[%clk 0:02:10]}  Bxd4+ {[%clk 0:00:40]} 25. Rxd4 {[%clk 0:02:11]}  Rac8 {[%clk 0:00:32]} 26. Bxb7 {[%clk 0:02:07]}  Rc2 {[%clk 0:00:31]} 27. Bd5 {[%clk 0:01:52]}  Rxb2 {[%clk 0:00:24]} 28. Bb3 {[%clk 0:01:51]}  Qg7 {[%clk 0:00:20]} 29. Rc4 {[%clk 0:01:34]}  Rb8 {[%clk 0:00:16]} 30. Rc7 {[%clk 0:01:29]}  Rf8 {[%clk 0:00:16]} 31. Qe7 {[%clk 0:01:26]}  Rd2 {[%clk 0:00:14]} 32. Rc4 {[%clk 0:01:21]}  Qb2 {[%clk 0:00:13]} 33. Qg5 {[%clk 0:01:20]}  Kg7 {[%clk 0:00:12]} 34. Rc7 {[%clk 0:01:13]}  a5 {[%clk 0:00:11]} 35. Bc4 {[%clk 0:01:00]}  Qd4+ {[%clk 0:00:11]} 36. Qe3 {[%clk 0:00:56]}  Qxe3+ {[%clk 0:00:10]} 37. Rxe3 {[%clk 0:00:57]}  Rc2 {[%clk 0:00:10]} 38. Ree7 {[%clk 0:00:55]}  Kh6 {[%clk 0:00:07]} 39. h3 {[%clk 0:00:51]}  h4 {[%clk 0:00:07]} 40. Bxf7 {[%clk 0:00:46]}  Rxc7 {[%clk 0:00:05]} 41. Rxc7 {[%clk 0:00:47]}  a4 {[%clk 0:00:04]} 42. Ra7 {[%clk 0:00:44]}  Bb1 {[%clk 0:00:03]} 43. Bc4 {[%clk 0:00:41]}  Bc2 {[%clk 0:00:03]} 44. Kf2 {[%clk 0:00:39]}  Rd8 {[%clk 0:00:00]} 45. Bb5 {[%clk 0:00:35]} 1-0

[Event "December 5 Early 2023"]
[Site "https://www.chess.com"]
[Date "2023.12.05"]
[Round "8"]
[White "Shapiro, Daniel"]
[Black "BestestBP"]
[Result "1-0"]
[Board "166"]
[TimeControl "180+1"]
[WhiteFideId "2001780"]
[WhiteElo "2309"]
[BlackElo "2068"]
[WhiteTeam "USA"]
[WhiteClock "0:00:08"]
[BlackClock "0:00:00"]

1. d4 {[%clk 0:03:00]}  Nf6 {[%clk 0:02:56]} 2. c4 {[%clk 0:03:00]}  e6 {[%clk 0:02:56]} 3. g3 {[%clk 0:03:00]}  Bb4+ {[%clk 0:02:55]} 4. Bd2 {[%clk 0:03:00]}  a5 {[%clk 0:02:54]} 5. Bg2 {[%clk 0:02:59]}  O-O {[%clk 0:02:54]} 6. Nf3 {[%clk 0:02:58]}  d5 {[%clk 0:02:53]} 7. Qc2 {[%clk 0:02:58]}  c5 {[%clk 0:02:48]} 8. dxc5 {[%clk 0:02:56]}  d4 {[%clk 0:02:40]} 9. Ne5 {[%clk 0:02:41]}  Nbd7 {[%clk 0:01:59]} 10. Nd3 {[%clk 0:02:31]}  Bxd2+ {[%clk 0:01:51]} 11. Nxd2 {[%clk 0:02:29]}  Qc7 {[%clk 0:01:48]} 12. Nb3 {[%clk 0:02:18]}  e5 {[%clk 0:01:47]} 13. a4 {[%clk 0:02:18]}  e4 {[%clk 0:01:45]} 14. Nf4 {[%clk 0:02:17]}  Nxc5 {[%clk 0:01:45]} 15. Nxd4 {[%clk 0:02:11]}  Qe5 {[%clk 0:01:31]} 16. Nb5 {[%clk 0:02:05]}  e3 {[%clk 0:01:24]} 17. f3 {[%clk 0:01:40]}  Rd8 {[%clk 0:01:08]} 18. Qc3 {[%clk 0:01:10]}  Qxc3+ {[%clk 0:00:57]} 19. Nxc3 {[%clk 0:01:09]}  Rd2 {[%clk 0:00:52]} 20. Nfd5 {[%clk 0:00:54]}  Rxb2 {[%clk 0:00:29]} 21. Nxe3 {[%clk 0:00:50]}  Be6 {[%clk 0:00:23]} 22. O-O {[%clk 0:00:48]}  Rb4 {[%clk 0:00:19]} 23. Ncd5 {[%clk 0:00:43]}  Rxa4 {[%clk 0:00:12]} 24. Rxa4 {[%clk 0:00:24]}  Nxa4 {[%clk 0:00:13]} 25. Nc7 {[%clk 0:00:23]}  Rc8 {[%clk 0:00:12]} 26. Nxe6 {[%clk 0:00:23]}  fxe6 {[%clk 0:00:13]} 27. Ra1 {[%clk 0:00:23]}  Nb6 {[%clk 0:00:12]} 28. Rxa5 {[%clk 0:00:20]}  Nxc4 {[%clk 0:00:12]} 29. Nxc4 {[%clk 0:00:17]}  Rxc4 {[%clk 0:00:13]} 30. Rb5 {[%clk 0:00:17]}  Rc7 {[%clk 0:00:12]} 31. f4 {[%clk 0:00:17]}  Nd5 {[%clk 0:00:06]} 32. Bxd5 {[%clk 0:00:16]}  exd5 {[%clk 0:00:07]} 33. Rxd5 {[%clk 0:00:17]}  Rc2 {[%clk 0:00:06]} 34. Kf2 {[%clk 0:00:17]}  Rb2 {[%clk 0:00:06]} 35. Kf3 {[%clk 0:00:16]}  Kf7 {[%clk 0:00:06]} 36. Rd7+ {[%clk 0:00:16]}  Kf6 {[%clk 0:00:06]} 37. h3 {[%clk 0:00:12]}  b5 {[%clk 0:00:05]} 38. e4 {[%clk 0:00:12]}  Rb3+ {[%clk 0:00:05]} 39. Kg4 {[%clk 0:00:11]}  h5+ {[%clk 0:00:04]} 40. Kh4 {[%clk 0:00:11]}  g6 {[%clk 0:00:04]} 41. Rd6+ {[%clk 0:00:10]}  Kf7 {[%clk 0:00:03]} 42. g4 {[%clk 0:00:09]}  hxg4 {[%clk 0:00:03]} 43. hxg4 {[%clk 0:00:08]}  Rb1 {[%clk 0:00:04]} 44. Kg5 {[%clk 0:00:07]}  b4 {[%clk 0:00:04]} 45. Rd7+ {[%clk 0:00:07]}  Ke6 {[%clk 0:00:04]} 46. Rb7 {[%clk 0:00:07]}  b3 {[%clk 0:00:03]} 47. Kxg6 {[%clk 0:00:07]}  b2 {[%clk 0:00:02]} 48. Rb6+ {[%clk 0:00:07]}  Ke7 {[%clk 0:00:02]} 49. e5 {[%clk 0:00:08]}  Kd7 {[%clk 0:00:01]} 50. f5 {[%clk 0:00:07]}  Ke7 {[%clk 0:00:01]} 51. Rb7+ {[%clk 0:00:07]}  Ke8 {[%clk 0:00:01]} 52. Kf6 {[%clk 0:00:08]}  Rg1 {[%clk 0:00:01]} 53. Ke6 {[%clk 0:00:08]}  b1=Q {[%clk 0:00:01]} 54. Rxb1 {[%clk 0:00:07]}  Rxb1 {[%clk 0:00:02]} 55. f6 {[%clk 0:00:07]}  Rb6+ {[%clk 0:00:02]} 56. Kf5 {[%clk 0:00:07]}  Rb1 {[%clk 0:00:01]} 57. g5 {[%clk 0:00:08]}  Rf1+ {[%clk 0:00:00]} 58. Ke6 {[%clk 0:00:08]} 1-0

[Event "December 5 Early 2023"]
[Site "https://www.chess.com"]
[Date "2023.12.05"]
[Round "8"]
[White "Fernandez Hernandez, Gerardo"]
[Black "Mickiewicz, Piotr"]
[Result "0-1"]
[Board "167"]
[TimeControl "180+1"]
[WhiteFideId "2207400"]
[BlackFideId "1114891"]
[WhiteElo "2219"]
[BlackElo "2372"]
[WhiteTeam "ESP"]
[BlackTeam "POL"]
[WhiteClock "0:00:00"]
[BlackClock "0:00:09"]

1. e4 {[%clk 0:03:00]}  c5 {[%clk 0:02:37]} 2. d3 {[%clk 0:02:58]}  Nc6 {[%clk 0:02:34]} 3. g3 {[%clk 0:02:58]}  g6 {[%clk 0:02:32]} 4. Bg2 {[%clk 0:02:58]}  Bg7 {[%clk 0:02:31]} 5. f4 {[%clk 0:02:59]}  Rb8 {[%clk 0:02:31]} 6. Nf3 {[%clk 0:02:57]}  b5 {[%clk 0:02:31]} 7. O-O {[%clk 0:02:57]}  d6 {[%clk 0:02:29]} 8. Nc3 {[%clk 0:02:49]}  b4 {[%clk 0:02:27]} 9. Ne2 {[%clk 0:02:44]}  Nf6 {[%clk 0:02:28]} 10. h3 {[%clk 0:02:41]}  Nd7 {[%clk 0:02:26]} 11. Rb1 {[%clk 0:02:38]}  a5 {[%clk 0:02:24]} 12. Nh4 {[%clk 0:02:34]}  e6 {[%clk 0:02:21]} 13. f5 {[%clk 0:02:20]}  g5 {[%clk 0:02:05]} 14. fxe6 {[%clk 0:02:13]}  fxe6 {[%clk 0:02:04]} 15. Nf3 {[%clk 0:01:58]}  h6 {[%clk 0:02:00]} 16. g4 {[%clk 0:01:51]}  Nde5 {[%clk 0:01:54]} 17. Ng3 {[%clk 0:01:51]}  Rf8 {[%clk 0:01:32]} 18. Nh5 {[%clk 0:01:47]}  Bh8 {[%clk 0:01:30]} 19. Be3 {[%clk 0:01:36]}  Nxf3+ {[%clk 0:01:16]} 20. Rxf3 {[%clk 0:01:35]}  Nd4 {[%clk 0:01:15]} 21. Rxf8+ {[%clk 0:01:25]}  Kxf8 {[%clk 0:01:16]} 22. Kh1 {[%clk 0:01:19]}  Kg8 {[%clk 0:01:15]} 23. Qd2 {[%clk 0:01:07]}  Be5 {[%clk 0:01:06]} 24. Rf1 {[%clk 0:01:04]}  Ba6 {[%clk 0:00:57]} 25. Qf2 {[%clk 0:00:54]}  Qe7 {[%clk 0:00:56]} 26. Qd2 {[%clk 0:00:43]}  Rf8 {[%clk 0:00:55]} 27. Kg1 {[%clk 0:00:37]}  a4 {[%clk 0:00:50]} 28. b3 {[%clk 0:00:34]}  a3 {[%clk 0:00:50]} 29. Rxf8+ {[%clk 0:00:25]}  Qxf8 {[%clk 0:00:48]} 30. Kh1 {[%clk 0:00:20]}  Qf7 {[%clk 0:00:48]} 31. Bxd4 {[%clk 0:00:20]}  Bxd4 {[%clk 0:00:46]} 32. Ng3 {[%clk 0:00:19]}  Bc3 {[%clk 0:00:27]} 33. Qe2 {[%clk 0:00:19]}  Qf4 {[%clk 0:00:24]} 34. Qf3 {[%clk 0:00:11]}  Qc1+ {[%clk 0:00:24]} 35. Kh2 {[%clk 0:00:11]}  Qxc2 {[%clk 0:00:23]} 36. e5 {[%clk 0:00:10]}  Qxd3 {[%clk 0:00:13]} 37. Qa8+ {[%clk 0:00:09]}  Kh7 {[%clk 0:00:12]} 38. exd6 {[%clk 0:00:07]}  Qxd6 {[%clk 0:00:10]} 39. Qa7+ {[%clk 0:00:07]}  Kg6 {[%clk 0:00:09]} 40. Qa8 {[%clk 0:00:00]}  Kf6 {[%clk 0:00:09]} 0-1

[Event "December 5 Early 2023"]
[Site "https://www.chess.com"]
[Date "2023.12.05"]
[Round "8"]
[White "Korol, Dimitry"]
[Black "Saim, Mohamed Ilias"]
[Result "1-0"]
[Board "168"]
[TimeControl "180+1"]
[WhiteFideId "14108003"]
[BlackFideId "7900465"]
[WhiteElo "2293"]
[BlackElo "2007"]
[WhiteTeam "UKR"]
[BlackTeam "ALG"]
[WhiteClock "0:00:03"]
[BlackClock "0:00:00"]

1. d4 {[%clk 0:03:00]}  Nf6 {[%clk 0:02:59]} 2. c4 {[%clk 0:03:01]}  e6 {[%clk 0:02:59]} 3. Nc3 {[%clk 0:03:02]}  Bb4 {[%clk 0:02:59]} 4. Qc2 {[%clk 0:03:02]}  c5 {[%clk 0:02:57]} 5. dxc5 {[%clk 0:03:02]}  O-O {[%clk 0:02:56]} 6. Nf3 {[%clk 0:03:02]}  Nc6 {[%clk 0:02:54]} 7. a3 {[%clk 0:03:00]}  Bxc5 {[%clk 0:02:54]} 8. Bg5 {[%clk 0:03:00]}  Be7 {[%clk 0:02:41]} 9. e3 {[%clk 0:02:59]}  a6 {[%clk 0:02:38]} 10. Be2 {[%clk 0:02:59]}  b6 {[%clk 0:02:39]} 11. O-O {[%clk 0:02:58]}  Bb7 {[%clk 0:02:39]} 12. Rfd1 {[%clk 0:02:58]}  Qc7 {[%clk 0:02:39]} 13. Rac1 {[%clk 0:02:58]}  d6 {[%clk 0:02:37]} 14. Bxf6 {[%clk 0:02:53]}  Bxf6 {[%clk 0:02:35]} 15. Nd5 {[%clk 0:02:51]}  exd5 {[%clk 0:02:15]} 16. cxd5 {[%clk 0:02:52]}  Rac8 {[%clk 0:02:02]} 17. dxc6 {[%clk 0:02:36]}  Qxc6 {[%clk 0:02:02]} 18. Qxc6 {[%clk 0:02:35]}  Bxc6 {[%clk 0:01:53]} 19. Rxd6 {[%clk 0:01:25]}  Bxf3 {[%clk 0:01:49]} 20. Rxc8 {[%clk 0:01:23]}  Bxe2 {[%clk 0:01:27]} 21. Rxf8+ {[%clk 0:01:18]}  Kxf8 {[%clk 0:01:28]} 22. Rxb6 {[%clk 0:01:19]}  Bb5 {[%clk 0:01:20]} 23. b3 {[%clk 0:00:58]}  Ke8 {[%clk 0:01:11]} 24. a4 {[%clk 0:00:52]}  Bd3 {[%clk 0:01:06]} 25. Rd6 {[%clk 0:00:41]}  Be2 {[%clk 0:00:52]} 26. f3 {[%clk 0:00:29]}  a5 {[%clk 0:00:20]} 27. Kf2 {[%clk 0:00:26]}  Be7 {[%clk 0:00:18]} 28. Rd5 {[%clk 0:00:23]}  Ba6 {[%clk 0:00:14]} 29. Rxa5 {[%clk 0:00:23]}  Bc8 {[%clk 0:00:12]} 30. Rb5 {[%clk 0:00:21]}  Kd7 {[%clk 0:00:10]} 31. a5 {[%clk 0:00:18]}  Kc6 {[%clk 0:00:07]} 32. Rb6+ {[%clk 0:00:18]}  Kc7 {[%clk 0:00:07]} 33. b4 {[%clk 0:00:19]}  Bb7 {[%clk 0:00:04]} 34. g4 {[%clk 0:00:14]}  h6 {[%clk 0:00:02]} 35. Kg3 {[%clk 0:00:13]}  Bd6+ {[%clk 0:00:02]} 36. f4 {[%clk 0:00:13]}  Be7 {[%clk 0:00:02]} 37. h4 {[%clk 0:00:12]}  Bd8 {[%clk 0:00:02]} 38. g5 {[%clk 0:00:11]}  hxg5 {[%clk 0:00:02]} 39. fxg5 {[%clk 0:00:10]}  Kb8 {[%clk 0:00:02]} 40. Rb5 {[%clk 0:00:09]}  Ka7 {[%clk 0:00:03]} 41. Kf4 {[%clk 0:00:07]}  Ka6 {[%clk 0:00:03]} 42. Rc5 {[%clk 0:00:07]}  Be7 {[%clk 0:00:03]} 43. Rc4 {[%clk 0:00:06]}  Bd6+ {[%clk 0:00:04]} 44. Kg4 {[%clk 0:00:05]}  Bd5 {[%clk 0:00:04]} 45. Rd4 {[%clk 0:00:05]}  Be6+ {[%clk 0:00:04]} 46. Kh5 {[%clk 0:00:05]}  Be5 {[%clk 0:00:04]} 47. Re4 {[%clk 0:00:04]}  Bd6 {[%clk 0:00:04]} 48. Rd4 {[%clk 0:00:04]}  Be7 {[%clk 0:00:03]} 49. g6 {[%clk 0:00:03]}  fxg6+ {[%clk 0:00:00]} 50. Kxg6 {[%clk 0:00:03]} 1-0

[Event "December 5 Early 2023"]
[Site "https://www.chess.com"]
[Date "2023.12.05"]
[Round "8"]
[White "Chirivi C, Jenny Astrid"]
[Black "Skiadopoulos, Nikolaos"]
[Result "1-0"]
[Board "169"]
[TimeControl "180+1"]
[WhiteFideId "4403061"]
[BlackFideId "4200772"]
[WhiteElo "2270"]
[BlackElo "1774"]
[WhiteTeam "COL"]
[BlackTeam "GRE"]
[WhiteClock "0:00:01"]
[BlackClock "0:00:00"]

1. d4 {[%clk 0:03:00]}  Nf6 {[%clk 0:02:58]} 2. c4 {[%clk 0:03:00]}  c5 {[%clk 0:02:58]} 3. d5 {[%clk 0:02:59]}  b5 {[%clk 0:02:58]} 4. Qc2 {[%clk 0:02:51]}  bxc4 {[%clk 0:02:55]} 5. e4 {[%clk 0:02:49]}  Ba6 {[%clk 0:02:44]} 6. Bxc4 {[%clk 0:02:39]}  d6 {[%clk 0:02:39]} 7. Nf3 {[%clk 0:02:36]}  g6 {[%clk 0:02:38]} 8. O-O {[%clk 0:02:36]}  Bxc4 {[%clk 0:02:35]} 9. Qxc4 {[%clk 0:02:32]}  Bg7 {[%clk 0:02:35]} 10. Nc3 {[%clk 0:02:29]}  O-O {[%clk 0:02:34]} 11. h3 {[%clk 0:02:22]}  Nbd7 {[%clk 0:02:34]} 12. Re1 {[%clk 0:02:11]}  Rb8 {[%clk 0:02:31]} 13. b3 {[%clk 0:02:10]}  Rb4 {[%clk 0:02:24]} 14. Qd3 {[%clk 0:02:07]}  Nxe4 {[%clk 0:02:09]} 15. Nxe4 {[%clk 0:01:50]}  Bxa1 {[%clk 0:02:04]} 16. Bd2 {[%clk 0:01:48]}  Rxe4 {[%clk 0:01:57]} 17. Qxe4 {[%clk 0:01:47]}  Bf6 {[%clk 0:01:54]} 18. Bg5 {[%clk 0:01:42]}  Bxg5 {[%clk 0:01:35]} 19. Nxg5 {[%clk 0:01:41]}  Re8 {[%clk 0:01:29]} 20. Qa4 {[%clk 0:01:29]}  h6 {[%clk 0:01:19]} 21. Ne4 {[%clk 0:01:14]}  Qc7 {[%clk 0:01:10]} 22. Nc3 {[%clk 0:01:05]}  e5 {[%clk 0:00:50]} 23. dxe6 {[%clk 0:01:02]}  Rxe6 {[%clk 0:00:49]} 24. Rxe6 {[%clk 0:01:01]}  fxe6 {[%clk 0:00:49]} 25. Qe4 {[%clk 0:00:59]}  Nf8 {[%clk 0:00:47]} 26. Qf4 {[%clk 0:00:49]}  Qe7 {[%clk 0:00:44]} 27. Ne4 {[%clk 0:00:44]}  e5 {[%clk 0:00:40]} 28. Qxh6 {[%clk 0:00:40]}  d5 {[%clk 0:00:35]} 29. Qg5 {[%clk 0:00:33]}  Qxg5 {[%clk 0:00:31]} 30. Nxg5 {[%clk 0:00:33]}  Kg7 {[%clk 0:00:28]} 31. Kf1 {[%clk 0:00:31]}  Kf6 {[%clk 0:00:28]} 32. h4 {[%clk 0:00:31]}  Nd7 {[%clk 0:00:21]} 33. Ke2 {[%clk 0:00:31]}  e4 {[%clk 0:00:20]} 34. Ke3 {[%clk 0:00:22]}  Ne5 {[%clk 0:00:19]} 35. f3 {[%clk 0:00:22]}  exf3 {[%clk 0:00:17]} 36. gxf3 {[%clk 0:00:22]}  Kf5 {[%clk 0:00:15]} 37. Ke2 {[%clk 0:00:15]}  d4 {[%clk 0:00:11]} 38. Ne4 {[%clk 0:00:14]}  Kf4 {[%clk 0:00:11]} 39. Nxc5 {[%clk 0:00:14]}  Nxf3 {[%clk 0:00:11]} 40. Ne6+ {[%clk 0:00:13]}  Ke4 {[%clk 0:00:11]} 41. Nc5+ {[%clk 0:00:10]}  Kf4 {[%clk 0:00:10]} 42. Nd3+ {[%clk 0:00:10]}  Ke4 {[%clk 0:00:10]} 43. Nf2+ {[%clk 0:00:11]}  Kf4 {[%clk 0:00:10]} 44. Kd3 {[%clk 0:00:12]}  Nxh4 {[%clk 0:00:08]} 45. Kxd4 {[%clk 0:00:11]}  Kf3 {[%clk 0:00:08]} 46. Ne4 {[%clk 0:00:09]}  Nf5+ {[%clk 0:00:09]} 47. Ke5 {[%clk 0:00:09]}  Nh4 {[%clk 0:00:07]} 48. b4 {[%clk 0:00:07]}  Kg4 {[%clk 0:00:05]} 49. a4 {[%clk 0:00:06]}  g5 {[%clk 0:00:06]} 50. Nf6+ {[%clk 0:00:06]}  Kg3 {[%clk 0:00:03]} 51. b5 {[%clk 0:00:05]}  Nf3+ {[%clk 0:00:04]} 52. Kd5 {[%clk 0:00:04]}  g4 {[%clk 0:00:05]} 53. a5 {[%clk 0:00:03]}  Kf4 {[%clk 0:00:05]} 54. b6 {[%clk 0:00:02]}  axb6 {[%clk 0:00:06]} 55. axb6 {[%clk 0:00:02]}  g3 {[%clk 0:00:07]} 56. Nh5+ {[%clk 0:00:01]}  Kg4 {[%clk 0:00:06]} 57. Nxg3 {[%clk 0:00:01]}  Kxg3 {[%clk 0:00:06]} 58. b7 {[%clk 0:00:02]}  Ng5 {[%clk 0:00:00]} 59. b8=Q+ {[%clk 0:00:01]} 1-0